{"text_format":"3","workbook":"xlsx","n_sheets":1,"sheets":["Планувальник бюджету свята"],"not_rendered":{"defined_names":1},"read":"whole","date_system":"1900"}

{"sheet":"Планувальник бюджету свята","index":0,"n_rows":37,"n_cols":12,"rows_kept":37,"merged":[[1,1,7,4],[9,1,9,4],[9,8,9,11],[19,1,19,4],[19,8,19,11],[30,1,30,4],[30,8,30,11]]}
[]
[null,"Планувальник бюджету свята"]
[]
[{"$nulls":8},"БЮДЖЕТ СВЯТА",null,{"$f":"SUM(Подарунки[Бюджет],Пакування[Бюджет],(Подорожі[Планові],(Харчування[Бюджет],(Розваги[Бюджет],Інше[Планові]))))","v":{"v":750,"d":"750.00₴"}}]
[{"$nulls":8},"ФАКТИЧНІ ВИТРАТИ",null,{"$f":"SUM((Подарунки[Фактичні],(Пакування[Фактично],(Подорожі[Фактично],(Харчування[Фактичні],(Розваги[Фактично],(Інше[Фактично])))))))","v":{"v":820,"d":"820.00₴"}}]
[]
[{"$nulls":8},"РІЗНИЦЯ (пере- або недовиконання)",null,{"$f":"SUM(K4-K5)","v":{"v":-70,"d":"-70.00₴"}}]
[]
[]
[null,"Подарунки",{"$nulls":6},"Святковий стіл"]
[null,"Пункт","Бюджет","Фактичні","Різниця",{"$nulls":3},"Пункт","Бюджет","Фактичні","Різниця"]
[null,"Сім’я",{"v":500,"d":"500.00₴"},{"v":495,"d":"495.00₴"},{"$f":"Подарунки[[#This Row],[Бюджет]]-Подарунки[[#This Row],[Фактичні]]","v":{"v":5,"d":"5.00₴"}},{"$nulls":3},"Продукти",null,null,{"$f":"Харчування[[#This Row],[Бюджет]]-Харчування[[#This Row],[Фактичні]]","v":{"v":0,"d":"0.00₴"}}]
[null,"Друзі",{"v":250,"d":"250.00₴"},{"v":325,"d":"325.00₴"},{"$f":"Подарунки[[#This Row],[Бюджет]]-Подарунки[[#This Row],[Фактичні]]","v":{"v":-75,"d":"-75.00₴"}},{"$nulls":3},"Алкоголь",null,null,{"$f":"Харчування[[#This Row],[Бюджет]]-Харчування[[#This Row],[Фактичні]]","v":{"v":0,"d":"0.00₴"}}]
[null,"Колеги",null,null,{"$f":"Подарунки[[#This Row],[Бюджет]]-Подарунки[[#This Row],[Фактичні]]","v":{"v":0,"d":"0.00₴"}},{"$nulls":3},"Прикраси",null,null,{"$f":"Харчування[[#This Row],[Бюджет]]-Харчування[[#This Row],[Фактичні]]","v":{"v":0,"d":"0.00₴"}}]
[null,"Учителі, вихователі, няньки тощо",null,null,{"$f":"Подарунки[[#This Row],[Бюджет]]-Подарунки[[#This Row],[Фактичні]]","v":{"v":0,"d":"0.00₴"}},{"$nulls":3},"Інше (натисніть клавішу Tab в останньому стовпці цього рядка, щоб додати рядок)",null,null,{"$f":"Харчування[[#This Row],[Бюджет]]-Харчування[[#This Row],[Фактичні]]","v":{"v":0,"d":"0.00₴"}}]
[null,"Благодійної пожертви",null,null,{"$f":"Подарунки[[#This Row],[Бюджет]]-Подарунки[[#This Row],[Фактичні]]","v":{"v":0,"d":"0.00₴"}},{"$nulls":3},"Підсумок",{"$f":"SUBTOTAL(109,Харчування[Бюджет])","v":{"v":0,"d":"0.00₴"}},{"$f":"SUBTOTAL(109,Харчування[Фактичні])","v":{"v":0,"d":"0.00₴"}},{"$f":"SUBTOTAL(109,Харчування[Різниця])","v":{"v":0,"d":"0.00₴"}}]
[null,"Інше (натисніть клавішу Tab в останньому стовпці цього рядка, щоб додати рядок)",null,null,{"$f":"Подарунки[[#This Row],[Бюджет]]-Подарунки[[#This Row],[Фактичні]]","v":{"v":0,"d":"0.00₴"}}]
[null,"Підсумок",{"$f":"SUBTOTAL(109,Подарунки[Бюджет])","v":{"v":750,"d":"750.00₴"}},{"$f":"SUBTOTAL(109,Подарунки[Фактичні])","v":{"v":820,"d":"820.00₴"}},{"$f":"SUBTOTAL(109,Подарунки[Різниця])","v":{"v":-70,"d":"-70.00₴"}}]
[]
[null,"Пакування",{"$nulls":6},"Розваги"]
[null,"Пункт","Бюджет","Фактично","Різниця",{"$nulls":3},"Пункт","Бюджет","Фактично","Різниця"]
[null,"Подарункова обгортка",null,null,{"$f":"Пакування[[#This Row],[Бюджет]]-Пакування[[#This Row],[Фактично]]","v":{"v":0,"d":"0.00₴"}},{"$nulls":3},"Обслуговування вечірки (бармен, офіціант, прибиральник тощо)",null,null,{"$f":"Розваги[[#This Row],[Бюджет]]-Розваги[[#This Row],[Фактично]]","v":{"v":0,"d":"0.00₴"}}]
[null,"Етикетки",null,null,{"$f":"Пакування[[#This Row],[Бюджет]]-Пакування[[#This Row],[Фактично]]","v":{"v":0,"d":"0.00₴"}},{"$nulls":3},"Прикраси",null,null,{"$f":"Розваги[[#This Row],[Бюджет]]-Розваги[[#This Row],[Фактично]]","v":{"v":0,"d":"0.00₴"}}]
[null,"Витратні матеріали (стрічка, клей тощо)",null,null,{"$f":"Пакування[[#This Row],[Бюджет]]-Пакування[[#This Row],[Фактично]]","v":{"v":0,"d":"0.00₴"}},{"$nulls":3},"Їжа та напої",null,null,{"$f":"Розваги[[#This Row],[Бюджет]]-Розваги[[#This Row],[Фактично]]","v":{"v":0,"d":"0.00₴"}}]
[null,"Коробки",null,null,{"$f":"Пакування[[#This Row],[Бюджет]]-Пакування[[#This Row],[Фактично]]","v":{"v":0,"d":"0.00₴"}},{"$nulls":3},"Одяг",null,null,{"$f":"Розваги[[#This Row],[Бюджет]]-Розваги[[#This Row],[Фактично]]","v":{"v":0,"d":"0.00₴"}}]
[null,"Поштові витрати",null,null,{"$f":"Пакування[[#This Row],[Бюджет]]-Пакування[[#This Row],[Фактично]]","v":{"v":0,"d":"0.00₴"}},{"$nulls":3},"Квитки",null,null,{"$f":"Розваги[[#This Row],[Бюджет]]-Розваги[[#This Row],[Фактично]]","v":{"v":0,"d":"0.00₴"}}]
[null,"Інше (натисніть клавішу Tab в останньому стовпці цього рядка, щоб додати рядок)",null,null,{"$f":"Пакування[[#This Row],[Бюджет]]-Пакування[[#This Row],[Фактично]]","v":{"v":0,"d":"0.00₴"}},{"$nulls":3},"Обіди в ресторані",null,null,{"$f":"Розваги[[#This Row],[Бюджет]]-Розваги[[#This Row],[Фактично]]","v":{"v":0,"d":"0.00₴"}}]
[null,"Підсумок",{"$f":"SUBTOTAL(109,Пакування[Бюджет])","v":{"v":0,"d":"0.00₴"}},{"$f":"SUBTOTAL(109,Пакування[Фактично])","v":{"v":0,"d":"0.00₴"}},{"$f":"SUBTOTAL(109,Пакування[Різниця])","v":{"v":0,"d":"0.00₴"}},{"$nulls":3},"Інше (натисніть клавішу Tab в останньому стовпці цього рядка, щоб додати рядок)",null,null,{"$f":"Розваги[[#This Row],[Бюджет]]-Розваги[[#This Row],[Фактично]]","v":{"v":0,"d":"0.00₴"}}]
[{"$nulls":8},"Підсумок",{"$f":"SUBTOTAL(109,Розваги[Бюджет])","v":{"v":0,"d":"0.00₴"}},{"$f":"SUBTOTAL(109,Розваги[Фактично])","v":{"v":0,"d":"0.00₴"}},{"$f":"SUBTOTAL(109,Розваги[Різниця])","v":{"v":0,"d":"0.00₴"}}]
[]
[null,"Поїздка",{"$nulls":6},"Різне"]
[null,"Пункт","Планові","Фактично","Різниця",{"$nulls":3},"Пункт","Планові","Фактично","Різниця"]
[null,"Авіаквитки",null,null,{"$f":"Подорожі[[#This Row],[Планові]]-Подорожі[[#This Row],[Фактично]]","v":{"v":0,"d":"0.00₴"}},{"$nulls":3},"Святкові фото",null,null,{"$f":"Інше[[#This Row],[Планові]]-Інше[[#This Row],[Фактично]]","v":{"v":0,"d":"0.00₴"}}]
[null,"Проживання",null,null,{"$f":"Подорожі[[#This Row],[Планові]]-Подорожі[[#This Row],[Фактично]]","v":{"v":0,"d":"0.00₴"}},{"$nulls":3},"Газ ",null,null,{"$f":"Інше[[#This Row],[Планові]]-Інше[[#This Row],[Фактично]]","v":{"v":0,"d":"0.00₴"}}]
[null,"Транспорт",null,null,{"$f":"Подорожі[[#This Row],[Планові]]-Подорожі[[#This Row],[Фактично]]","v":{"v":0,"d":"0.00₴"}},{"$nulls":3},"Інше (натисніть клавішу Tab в останньому стовпці цього рядка, щоб додати рядок)",null,null,{"$f":"Інше[[#This Row],[Планові]]-Інше[[#This Row],[Фактично]]","v":{"v":0,"d":"0.00₴"}}]
[null,"Інше (натисніть клавішу Tab в останньому стовпці цього рядка, щоб додати рядок)",null,null,{"$f":"Подорожі[[#This Row],[Планові]]-Подорожі[[#This Row],[Фактично]]","v":{"v":0,"d":"0.00₴"}},{"$nulls":3},"Підсумок",{"$f":"SUBTOTAL(109,Інше[Планові])","v":{"v":0,"d":"0.00₴"}},{"$f":"SUBTOTAL(109,Інше[Фактично])","v":{"v":0,"d":"0.00₴"}},{"$f":"SUBTOTAL(109,Інше[Різниця])","v":{"v":0,"d":"0.00₴"}}]
[null,"Підсумок",{"$f":"SUBTOTAL(109,Подорожі[Планові])","v":{"v":0,"d":"0.00₴"}},{"$f":"SUBTOTAL(109,Подорожі[Фактично])","v":{"v":0,"d":"0.00₴"}},{"$f":"SUBTOTAL(109,Подорожі[Різниця])","v":{"v":0,"d":"0.00₴"}}]